[Event "2026 European Womens Championship"]
[Site "Batumi, GE"]
[Date "2026.05.27"]
[Round "3"]
[White "Nadanyan, Kiti"]
[Black "Odisharia, Teona"]
[Result "1/2-1/2"]
[Board "58"]
[TimeControl "5400+30"]
[WhiteFideId "13316710"]
[BlackFideId "13602322"]
[WhiteElo "1801"]
[BlackElo "2167"]
[BlackTitle "WFM"]
[WhiteClock "0:01:17"]
[BlackClock "0:06:40"]
[Variant "Standard"]

1. e4 {[%clk 1:30:58]}  c5 {[%clk 1:29:44]} 2. Nc3 {[%clk 1:30:52]}  d6 {[%clk 1:29:53]} 3. g3 {[%clk 1:30:56]}  Nc6 {[%clk 1:30:12]}
4. Bg2 {[%clk 1:31:19]}  g6 {[%clk 1:30:37]} 5. d3 {[%clk 1:30:23]}  Bg7 {[%clk 1:30:56]} 6. Be3 {[%clk 1:30:06]}  Rb8 {[%clk 1:31:11]}
7. a4 {[%clk 1:29:04]}  a6 {[%clk 1:26:15]} 8. Qd2 {[%clk 1:22:36]}  b5 {[%clk 1:25:48]} 9. axb5 {[%clk 1:22:29]}  axb5 {[%clk 1:26:13]}
10. Nge2 {[%clk 1:22:16]}  b4 {[%clk 1:26:01]} 11. Nd1 {[%clk 1:21:29]}  Nd4 {[%clk 1:25:36]} 12. O-O {[%clk 1:09:34]}  h5 {[%clk 1:19:22]}
13. Nc1 {[%clk 0:44:02]}  h4 {[%clk 1:04:56]} 14. c3 {[%clk 0:43:35]}  Nc6 {[%clk 1:04:29]} 15. d4 {[%clk 0:39:26]}  cxd4 {[%clk 1:04:41]}
16. cxd4 {[%clk 0:39:50]}  Bd7 {[%clk 1:03:01]} 17. f4 {[%clk 0:33:20]}  hxg3 {[%clk 0:56:09]} 18. hxg3 {[%clk 0:33:44]}  Na5 {[%clk 0:56:24]}
19. b3 {[%clk 0:29:49]}  Nh6 {[%clk 0:47:37]} 20. Nf2 {[%clk 0:28:17]}  d5 {[%clk 0:46:42]} 21. exd5 {[%clk 0:27:07]}  Nf5 {[%clk 0:41:09]}
22. Ne4 {[%clk 0:27:21]}  Nb7 {[%clk 0:40:43]} 23. Bf2 {[%clk 0:24:25]}  Nbd6 {[%clk 0:37:59]} 24. Nxd6+ {[%clk 0:19:05]}  exd6 {[%clk 0:37:05]}
25. Re1+ {[%clk 0:19:27]}  Kf8 {[%clk 0:37:15]} 26. Na2 {[%clk 0:18:37]}  Qb6 {[%clk 0:36:25]} 27. Nxb4 {[%clk 0:14:32]}  Bxd4 {[%clk 0:30:35]}
28. Nc6 {[%clk 0:08:38]}  Bxc6 {[%clk 0:15:48]} 29. dxc6 {[%clk 0:09:02]}  Kg7 {[%clk 0:16:06]} 30. g4 {[%clk 0:03:57]}  Bxf2+ {[%clk 0:12:10]}
31. Qxf2 {[%clk 0:04:21]}  Nd4 {[%clk 0:09:29]} 32. Rad1 {[%clk 0:03:48]}  Nxb3 {[%clk 0:08:21]} 33. Rxd6 {[%clk 0:02:30]}  Qb4 {[%clk 0:07:37]}
34. Red1 {[%clk 0:00:57]}  Nc5 {[%clk 0:05:13]} 35. Qd4+ {[%clk 0:01:06]}  Qxd4+ {[%clk 0:05:30]} 36. R6xd4 {[%clk 0:01:07]}  Ne6 {[%clk 0:05:43]}
37. Rc4 {[%clk 0:01:04]}  Rhc8 {[%clk 0:04:47]} 38. Rdc1 {[%clk 0:00:32]}  Rc7 {[%clk 0:04:22]} 39. Kf2 {[%clk 0:00:43]}  Rb2+ {[%clk 0:04:22]}
40. Kg3 {[%clk 0:00:51]}  Kf6 {[%clk 0:04:05]} 41. Rd1 {[%clk 0:27:56]}  Rb3+ {[%clk 0:33:59]} 42. Kf2 {[%clk 0:27:17]}  Rb2+ {[%clk 0:33:34]}
43. Kg1 {[%clk 0:27:35]}  Ra7 {[%clk 0:26:24]} 44. Rdc1 {[%clk 0:24:12]}  Raa2 {[%clk 0:23:54]} 45. Bf1 {[%clk 0:20:44]}  Rf2 {[%clk 0:17:08]}
46. c7 {[%clk 0:11:09]}  Nxc7 {[%clk 0:17:17]} 47. Rxc7 {[%clk 0:09:07]}  Rxf4 {[%clk 0:17:18]} 48. R1c4 {[%clk 0:05:15]}  Rf3 {[%clk 0:13:21]}
49. Rc3 {[%clk 0:05:24]}  Rf4 {[%clk 0:13:39]} 50. R3c4 {[%clk 0:04:13]}  Rf3 {[%clk 0:13:56]} 51. Rc3 {[%clk 0:01:17]}  Rf4 {[%clk 0:06:40]} 1/2-1/2

[Event "2026 European Womens Championship"]
[Site "Batumi, GE"]
[Date "2026.05.27"]
[Round "3"]
[White "Chighvaria, Ana"]
[Black "Abdinova, Narmin"]
[Result "0-1"]
[Board "59"]
[TimeControl "5400+30"]
[WhiteFideId "13628666"]
[BlackFideId "13425340"]
[WhiteElo "1518"]
[BlackElo "2165"]
[BlackTitle "WIM"]
[WhiteClock "0:00:48"]
[BlackClock "0:02:53"]
[Variant "Standard"]

1. d4 {[%clk 1:30:56]}  Nf6 {[%clk 1:26:16]} 2. Nf3 {[%clk 1:31:07]}  d5 {[%clk 1:26:22]} 3. h3 {[%clk 1:31:07]}  c5 {[%clk 1:25:21]}
4. e3 {[%clk 1:30:38]}  Nc6 {[%clk 1:24:49]} 5. Nbd2 {[%clk 1:29:50]}  cxd4 {[%clk 1:23:24]} 6. exd4 {[%clk 1:29:45]}  Bf5 {[%clk 1:21:41]}
7. c3 {[%clk 1:28:39]}  e6 {[%clk 1:20:51]} 8. Bb5 {[%clk 1:21:07]}  Bd6 {[%clk 1:19:54]} 9. O-O {[%clk 1:17:35]}  O-O {[%clk 1:18:35]}
10. Re1 {[%clk 1:16:51]}  a6 {[%clk 1:07:46]} 11. Ba4 {[%clk 1:14:37]}  Rc8 {[%clk 0:57:17]} 12. Bxc6 {[%clk 1:12:24]}  Rxc6 {[%clk 0:54:08]}
13. Ne5 {[%clk 1:05:59]}  Rc8 {[%clk 0:54:29]} 14. Nf1 {[%clk 1:00:30]}  h6 {[%clk 0:48:29]} 15. Bf4 {[%clk 0:53:18]}  Ne4 {[%clk 0:38:52]}
16. f3 {[%clk 0:47:01]}  Nf6 {[%clk 0:36:48]} 17. Ne3 {[%clk 0:41:33]}  Bh7 {[%clk 0:35:39]} 18. Nd3 {[%clk 0:40:55]}  Be7 {[%clk 0:25:28]}
19. Qe2 {[%clk 0:38:08]}  Nh5 {[%clk 0:21:35]} 20. Bh2 {[%clk 0:35:36]}  Re8 {[%clk 0:21:32]} 21. Ng4 {[%clk 0:34:12]}  Qb6 {[%clk 0:18:40]}
22. Nde5 {[%clk 0:29:48]}  Bh4 {[%clk 0:12:40]} 23. Red1 {[%clk 0:24:32]}  f6 {[%clk 0:12:50]} 24. Nd7 {[%clk 0:21:54]}  Qc6 {[%clk 0:10:07]}
25. Nc5 {[%clk 0:20:03]}  e5 {[%clk 0:10:22]} 26. Qd2 {[%clk 0:16:55]}  Bg3 {[%clk 0:07:27]} 27. Nb3 {[%clk 0:14:21]}  e4 {[%clk 0:06:17]}
28. Bxg3 {[%clk 0:12:26]}  Nxg3 {[%clk 0:06:43]} 29. Qf2 {[%clk 0:11:51]}  Qc7 {[%clk 0:04:23]} 30. Re1 {[%clk 0:10:07]}  exf3 {[%clk 0:02:28]}
31. Qxf3 {[%clk 0:09:36]}  Ne4 {[%clk 0:01:51]} 32. Rad1 {[%clk 0:07:31]}  Re7 {[%clk 0:01:28]} 33. Re3 {[%clk 0:04:41]}  Rce8 {[%clk 0:01:24]}
34. Rde1 {[%clk 0:03:53]}  Kf8 {[%clk 0:00:33]} 35. Qd1 {[%clk 0:00:32]}  b6 {[%clk 0:00:35]} 36. Nd2 {[%clk 0:00:38]}  h5 {[%clk 0:00:35]}
37. Nxe4 {[%clk 0:00:32]}  hxg4 {[%clk 0:00:51]} 38. Qxg4 {[%clk 0:00:43]}  Rxe4 {[%clk 0:01:14]} 39. Rxe4 {[%clk 0:00:53]}  Rxe4 {[%clk 0:01:38]}
40. Qd1 {[%clk 0:00:57]}  Qg3 {[%clk 0:02:01]} 41. Rxe4 {[%clk 0:00:33]}  Bxe4 {[%clk 0:01:56]} 42. Qe2 {[%clk 0:00:56]}  f5 {[%clk 0:02:18]}
43. Qf2 {[%clk 0:00:57]}  Qg5 {[%clk 0:01:58]} 44. Kh2 {[%clk 0:01:01]}  f4 {[%clk 0:02:21]} 45. Kh1 {[%clk 0:00:51]}  Ke7 {[%clk 0:01:24]}
46. Qe2 {[%clk 0:00:44]}  Qg3 {[%clk 0:01:37]} 47. Kg1 {[%clk 0:00:33]}  f3 {[%clk 0:02:02]} 48. Qf2 {[%clk 0:00:55]}  Qxf2+ {[%clk 0:02:27]}
49. Kxf2 {[%clk 0:00:48]}  fxg2 {[%clk 0:02:53]} 0-1

[Event "2026 European Womens Championship"]
[Site "Batumi, GE"]
[Date "2026.05.27"]
[Round "3"]
[White "Zeliantsova, Kseniya"]
[Black "Vakhania, Aleksandra"]
[Result "1-0"]
[Board "60"]
[TimeControl "5400+30"]
[WhiteFideId "13512617"]
[BlackFideId "13602560"]
[WhiteElo "2176"]
[BlackElo "2079"]
[WhiteTitle "WFM"]
[BlackTitle "WIM"]
[WhiteClock "0:18:07"]
[BlackClock "0:03:06"]
[Variant "Standard"]

1. e4 {[%clk 1:30:58]}  c6 {[%clk 1:29:37]} 2. d4 {[%clk 1:31:22]}  d5 {[%clk 1:30:04]} 3. e5 {[%clk 1:31:45]}  g6 {[%clk 1:29:40]}
4. Nc3 {[%clk 1:31:47]}  Bg7 {[%clk 1:30:03]} 5. h3 {[%clk 1:32:03]}  Nh6 {[%clk 1:30:03]} 6. Be2 {[%clk 1:30:37]}  f6 {[%clk 1:30:06]}
7. f4 {[%clk 1:29:51]}  fxe5 {[%clk 1:26:14]} 8. dxe5 {[%clk 1:25:42]}  Nf5 {[%clk 1:24:02]} 9. Nf3 {[%clk 1:21:19]}  Ng3 {[%clk 1:20:39]}
10. Rg1 {[%clk 1:17:19]}  Qb6 {[%clk 1:14:27]} 11. Qd4 {[%clk 1:08:11]}  Bf5 {[%clk 1:09:47]} 12. Bd3 {[%clk 0:54:36]}  Nd7 {[%clk 0:51:25]}
13. Qf2 {[%clk 0:41:09]}  d4 {[%clk 0:26:04]} 14. Nxd4 {[%clk 0:30:31]}  Bxd3 {[%clk 0:15:51]} 15. cxd3 {[%clk 0:30:02]}  Nxe5 {[%clk 0:06:05]}
16. fxe5 {[%clk 0:29:57]}  Bxe5 {[%clk 0:06:33]} 17. Nf3 {[%clk 0:29:11]}  Qa5 {[%clk 0:05:58]} 18. Nxe5 {[%clk 0:29:18]}  Qxe5+ {[%clk 0:06:22]}
19. Qe3 {[%clk 0:28:34]}  Qd6 {[%clk 0:06:34]} 20. Ne4 {[%clk 0:25:38]}  Nxe4 {[%clk 0:05:13]} 21. Qxe4 {[%clk 0:22:35]}  Qg3+ {[%clk 0:04:58]}
22. Ke2 {[%clk 0:23:01]}  Rf8 {[%clk 0:05:05]} 23. Be3 {[%clk 0:23:25]}  Rf5 {[%clk 0:05:06]} 24. Rgf1 {[%clk 0:20:24]}  Rb5 {[%clk 0:03:52]}
25. b3 {[%clk 0:20:37]}  Rd8 {[%clk 0:04:19]} 26. Rf4 {[%clk 0:18:17]}  Rdd5 {[%clk 0:02:23]} 27. Qf3 {[%clk 0:17:49]}  Qh2 {[%clk 0:02:34]}
28. Bg1 {[%clk 0:17:40]}  Re5+ {[%clk 0:02:49]} 29. Kd2 {[%clk 0:18:06]}  Qh1 {[%clk 0:03:06]} 30. Bd4 {[%clk 0:18:07]} 1-0

[Event "2026 European Womens Championship"]
[Site "Batumi, GE"]
[Date "2026.05.27"]
[Round "3"]
[White "Subramanian, Anusha"]
[Black "Khurtsilava, Inga"]
[Result "1/2-1/2"]
[Board "61"]
[TimeControl "5400+30"]
[WhiteFideId "477710"]
[BlackFideId "13600419"]
[WhiteElo "2068"]
[BlackElo "2175"]
[WhiteTitle "WFM"]
[BlackTitle "WGM"]
[WhiteClock "0:07:00"]
[BlackClock "0:01:04"]
[Variant "Standard"]

1. e4 {[%clk 1:30:57]}  c6 {[%clk 1:29:19]} 2. d4 {[%clk 1:31:21]}  d5 {[%clk 1:29:46]} 3. e5 {[%clk 1:31:45]}  Bf5 {[%clk 1:29:57]}
4. Nd2 {[%clk 1:32:09]}  h5 {[%clk 1:29:39]} 5. h4 {[%clk 1:31:43]}  e6 {[%clk 1:29:59]} 6. Nb3 {[%clk 1:32:08]}  c5 {[%clk 1:26:31]}
7. Bb5+ {[%clk 1:29:23]}  Nc6 {[%clk 1:26:44]} 8. dxc5 {[%clk 1:26:30]}  Bxc5 {[%clk 1:24:17]} 9. Bxc6+ {[%clk 1:25:53]}  bxc6 {[%clk 1:24:42]}
10. Nxc5 {[%clk 1:26:02]}  Qa5+ {[%clk 1:25:06]} 11. c3 {[%clk 1:26:22]}  Qxc5 {[%clk 1:25:30]} 12. Ne2 {[%clk 1:26:13]}  Bg4 {[%clk 1:24:18]}
13. Qd3 {[%clk 1:12:49]}  Bxe2 {[%clk 1:24:17]} 14. Qxe2 {[%clk 1:13:00]}  Ne7 {[%clk 1:21:48]} 15. Be3 {[%clk 1:08:26]}  Qb5 {[%clk 1:18:24]}
16. Qxb5 {[%clk 0:55:19]}  cxb5 {[%clk 1:18:42]} 17. a4 {[%clk 0:55:42]}  bxa4 {[%clk 1:16:19]} 18. Rxa4 {[%clk 0:55:47]}  Nc6 {[%clk 1:15:58]}
19. f4 {[%clk 0:53:06]}  Kd7 {[%clk 1:12:07]} 20. Ra6 {[%clk 0:49:08]}  Rhb8 {[%clk 0:50:55]} 21. b4 {[%clk 0:48:06]}  Kc7 {[%clk 0:43:46]}
22. O-O {[%clk 0:40:48]}  g6 {[%clk 0:39:28]} 23. Bc5 {[%clk 0:37:24]}  Rb7 {[%clk 0:27:01]} 24. Rc1 {[%clk 0:35:08]}  Nb8 {[%clk 0:20:26]}
25. Rd6 {[%clk 0:26:54]}  Nd7 {[%clk 0:17:17]} 26. c4 {[%clk 0:26:45]}  dxc4 {[%clk 0:16:55]} 27. Rxc4 {[%clk 0:26:41]}  Kd8 {[%clk 0:17:04]}
28. Rcd4 {[%clk 0:23:27]}  Ke8 {[%clk 0:17:25]} 29. Ra6 {[%clk 0:22:37]}  Nb8 {[%clk 0:12:19]} 30. Rad6 {[%clk 0:21:12]}  Nd7 {[%clk 0:12:36]}
31. Rc6 {[%clk 0:12:58]}  Nxc5 {[%clk 0:11:23]} 32. Rxc5 {[%clk 0:11:35]}  Rd8 {[%clk 0:10:27]} 33. Rcc4 {[%clk 0:06:52]}  Rxd4 {[%clk 0:08:43]}
34. Rxd4 {[%clk 0:07:21]}  Rd7 {[%clk 0:09:08]} 35. Rc4 {[%clk 0:07:02]}  Kd8 {[%clk 0:07:38]} 36. Kf2 {[%clk 0:06:08]}  Rd2+ {[%clk 0:07:04]}
37. Kf3 {[%clk 0:05:57]}  Rb2 {[%clk 0:07:03]} 38. Kg3 {[%clk 0:05:17]}  Rb3+ {[%clk 0:06:32]} 39. Kf2 {[%clk 0:05:37]}  Kd7 {[%clk 0:06:27]}
40. Ke2 {[%clk 0:05:29]}  Ra3 {[%clk 0:04:16]} 41. b5 {[%clk 0:25:34]}  Ra5 {[%clk 0:33:29]} 42. Rd4+ {[%clk 0:22:43]}  Kc7 {[%clk 0:32:54]}
43. Rc4+ {[%clk 0:22:56]}  Kb8 {[%clk 0:29:02]} 44. Rd4 {[%clk 0:21:55]}  Rxb5 {[%clk 0:18:02]} 45. Rd8+ {[%clk 0:22:05]}  Kc7 {[%clk 0:18:27]}
46. Rf8 {[%clk 0:22:09]}  a5 {[%clk 0:18:10]} 47. Rxf7+ {[%clk 0:22:32]}  Kc6 {[%clk 0:18:37]} 48. Kd3 {[%clk 0:15:49]}  a4 {[%clk 0:13:48]}
49. Ra7 {[%clk 0:14:11]}  Rb4 {[%clk 0:12:18]} 50. g3 {[%clk 0:10:56]}  Kc5 {[%clk 0:05:55]} 51. Ra5+ {[%clk 0:08:01]}  Kb6 {[%clk 0:05:30]}
52. Ra8 {[%clk 0:08:24]}  Rb3+ {[%clk 0:05:12]} 53. Kd4 {[%clk 0:06:09]}  Rxg3 {[%clk 0:03:08]} 54. Rxa4 {[%clk 0:05:33]}  Rg4 {[%clk 0:03:33]}
55. Rb4+ {[%clk 0:05:34]}  Kc6 {[%clk 0:03:05]} 56. Rc4+ {[%clk 0:04:14]}  Kd7 {[%clk 0:02:20]} 57. Ke3 {[%clk 0:04:12]}  Rxh4 {[%clk 0:02:43]}
58. Ra4 {[%clk 0:04:28]}  Rh3+ {[%clk 0:03:08]} 59. Kd4 {[%clk 0:04:08]}  Rb3 {[%clk 0:02:27]} 60. Ra7+ {[%clk 0:04:20]}  Ke8 {[%clk 0:01:24]}
61. Ra8+ {[%clk 0:04:15]}  Kf7 {[%clk 0:01:47]} 62. Ra7+ {[%clk 0:04:37]}  Kf8 {[%clk 0:02:01]} 63. Ra6 {[%clk 0:03:49]}  Kf7 {[%clk 0:02:18]}
64. Ra7+ {[%clk 0:04:14]}  Kf8 {[%clk 0:02:29]} 65. Ra6 {[%clk 0:04:40]}  Ke7 {[%clk 0:01:38]} 66. Ra7+ {[%clk 0:05:03]}  Ke8 {[%clk 0:01:25]}
67. Ra6 {[%clk 0:05:22]}  Kd7 {[%clk 0:00:58]} 68. Ra7+ {[%clk 0:05:36]}  Kc6 {[%clk 0:00:50]} 69. Rg7 {[%clk 0:05:00]}  Rb4+ {[%clk 0:00:49]}
70. Ke3 {[%clk 0:05:25]}  Kd5 {[%clk 0:01:18]} 71. Rd7+ {[%clk 0:05:38]}  Kc5 {[%clk 0:01:21]} 72. Rc7+ {[%clk 0:05:55]}  Kd5 {[%clk 0:01:26]}
73. Rd7+ {[%clk 0:06:23]}  Kc5 {[%clk 0:01:16]} 74. Rc7+ {[%clk 0:06:38]}  Kd5 {[%clk 0:01:04]} 75. Rd7+ {[%clk 0:07:00]} 1/2-1/2

[Event "2026 European Womens Championship"]
[Site "Batumi, GE"]
[Date "2026.05.27"]
[Round "3"]
[White "Starosta, Martyna"]
[Black "Nenova, Andzhelika"]
[Result "1/2-1/2"]
[Board "62"]
[TimeControl "5400+30"]
[WhiteFideId "21818754"]
[BlackFideId "2939355"]
[WhiteElo "2175"]
[BlackElo "2072"]
[WhiteTitle "WIM"]
[WhiteClock "0:21:03"]
[BlackClock "0:07:21"]
[Variant "Standard"]

1. e4 {[%clk 1:30:57]}  e5 {[%clk 1:30:47]} 2. Nf3 {[%clk 1:31:00]}  Nc6 {[%clk 1:31:07]} 3. Bb5 {[%clk 1:31:13]}  f5 {[%clk 1:31:24]}
4. d3 {[%clk 1:28:58]}  fxe4 {[%clk 1:31:45]} 5. dxe4 {[%clk 1:29:21]}  Nf6 {[%clk 1:32:10]} 6. O-O {[%clk 1:28:07]}  Bc5 {[%clk 1:32:15]}
7. Bc4 {[%clk 1:18:59]}  d6 {[%clk 1:32:32]} 8. h3 {[%clk 1:15:46]}  Qe7 {[%clk 1:28:13]} 9. Nc3 {[%clk 1:12:06]}  Be6 {[%clk 1:26:12]}
10. Nd5 {[%clk 0:59:40]}  Bxd5 {[%clk 1:25:18]} 11. exd5 {[%clk 0:59:42]}  Nd4 {[%clk 1:24:52]} 12. Nxd4 {[%clk 0:49:51]}  Bxd4 {[%clk 1:25:12]}
13. Bb5+ {[%clk 0:50:08]}  Nd7 {[%clk 1:21:50]} 14. c3 {[%clk 0:45:00]}  Bb6 {[%clk 1:17:48]} 15. Qg4 {[%clk 0:44:14]}  h6 {[%clk 1:11:49]}
16. Qg6+ {[%clk 0:40:01]}  Kd8 {[%clk 1:11:37]} 17. a4 {[%clk 0:37:27]}  a6 {[%clk 1:10:08]} 18. Be2 {[%clk 0:37:25]}  Rf8 {[%clk 1:04:56]}
19. a5 {[%clk 0:36:22]}  Ba7 {[%clk 1:05:21]} 20. Be3 {[%clk 0:34:48]}  Rf6 {[%clk 1:03:53]} 21. Qg4 {[%clk 0:29:58]}  Nf8 {[%clk 0:58:39]}
22. Qb4 {[%clk 0:25:45]}  Kc8 {[%clk 0:49:19]} 23. Ra3 {[%clk 0:23:47]}  Bxe3 {[%clk 0:43:04]} 24. fxe3 {[%clk 0:21:00]}  Rxf1+ {[%clk 0:43:05]}
25. Bxf1 {[%clk 0:18:13]}  Nd7 {[%clk 0:39:49]} 26. Qg4 {[%clk 0:17:55]}  Kb8 {[%clk 0:39:25]} 27. b4 {[%clk 0:15:54]}  Nf6 {[%clk 0:35:35]}
28. Qd1 {[%clk 0:16:03]}  Ka7 {[%clk 0:33:05]} 29. c4 {[%clk 0:11:18]}  Rf8 {[%clk 0:32:37]} 30. Qc2 {[%clk 0:07:20]}  Nh5 {[%clk 0:25:05]}
31. e4 {[%clk 0:04:40]}  Qg5 {[%clk 0:24:20]} 32. c5 {[%clk 0:02:38]}  Ng3 {[%clk 0:20:36]} 33. Bc4 {[%clk 0:02:58]}  Nxe4 {[%clk 0:19:57]}
34. c6 {[%clk 0:03:08]}  bxc6 {[%clk 0:16:47]} 35. Bxa6 {[%clk 0:02:19]}  c5 {[%clk 0:14:16]} 36. b5 {[%clk 0:01:49]}  Nd2 {[%clk 0:08:58]}
37. Ra1 {[%clk 0:01:08]}  Qe3+ {[%clk 0:07:53]} 38. Kh1 {[%clk 0:01:31]}  Ne4 {[%clk 0:05:13]} 39. b6+ {[%clk 0:01:36]}  cxb6 {[%clk 0:01:49]}
40. Qb2 {[%clk 0:00:50]}  b5 {[%clk 0:00:36]} 41. Qxb5 {[%clk 0:28:32]}  Rb8 {[%clk 0:18:59]} 42. Qc6 {[%clk 0:28:24]}  Rb2 {[%clk 0:14:25]}
43. Bc8 {[%clk 0:24:20]}  Qg3 {[%clk 0:10:26]} 44. Qc7+ {[%clk 0:19:50]}  Ka8 {[%clk 0:10:50]} 45. Bb7+ {[%clk 0:19:41]}  Rxb7 {[%clk 0:10:56]}
46. Qc8+ {[%clk 0:19:53]}  Ka7 {[%clk 0:10:41]} 47. a6 {[%clk 0:20:16]}  Rf7 {[%clk 0:06:26]} 48. Rb1 {[%clk 0:20:22]}  Nf2+ {[%clk 0:06:48]}
49. Kg1 {[%clk 0:20:48]}  Nxh3+ {[%clk 0:07:08]} 50. Kh1 {[%clk 0:21:03]}  Nf2+ {[%clk 0:07:21]} 1/2-1/2

[Event "2026 European Womens Championship"]
[Site "Batumi, GE"]
[Date "2026.05.27"]
[Round "3"]
[White "Jimenez Fernandez, Rebeca"]
[Black "Krkyasharyan, Sona"]
[Result "1-0"]
[Board "63"]
[TimeControl "5400+30"]
[WhiteFideId "32070934"]
[BlackFideId "13316729"]
[WhiteElo "2166"]
[BlackElo "2063"]
[WhiteTitle "WFM"]
[BlackTitle "WFM"]
[WhiteClock "0:27:13"]
[BlackClock "0:57:02"]
[Variant "Standard"]

1. e4 {[%clk 1:30:57]}  c5 {[%clk 1:30:54]} 2. Nf3 {[%clk 1:31:23]}  d6 {[%clk 1:31:20]} 3. Bb5+ {[%clk 1:31:49]}  Nd7 {[%clk 1:31:44]}
4. c3 {[%clk 1:32:14]}  Ngf6 {[%clk 1:32:09]} 5. Bd3 {[%clk 1:32:39]}  a6 {[%clk 1:32:30]} 6. Bc2 {[%clk 1:33:03]}  b5 {[%clk 1:32:55]}
7. d4 {[%clk 1:33:23]}  Bb7 {[%clk 1:33:18]} 8. Nbd2 {[%clk 1:32:36]}  e6 {[%clk 1:33:41]} 9. O-O {[%clk 1:32:39]}  Be7 {[%clk 1:34:06]}
10. Re1 {[%clk 1:32:38]}  O-O {[%clk 1:34:27]} 11. e5 {[%clk 1:29:57]}  dxe5 {[%clk 1:32:20]} 12. dxe5 {[%clk 1:30:19]}  Nd5 {[%clk 1:32:45]}
13. Ne4 {[%clk 1:28:52]}  Qc7 {[%clk 1:28:21]} 14. Neg5 {[%clk 1:10:32]}  g6 {[%clk 1:27:04]} 15. h4 {[%clk 1:07:01]}  Rfd8 {[%clk 1:22:01]}
16. Qe2 {[%clk 1:04:15]}  Bf8 {[%clk 1:18:06]} 17. h5 {[%clk 0:53:58]}  Bg7 {[%clk 1:16:40]} 18. hxg6 {[%clk 0:49:16]}  hxg6 {[%clk 1:17:03]}
19. Nxf7 {[%clk 0:27:15]}  Kxf7 {[%clk 1:15:40]} 20. Bxg6+ {[%clk 0:27:25]}  Kxg6 {[%clk 0:56:49]} 21. Qe4+ {[%clk 0:27:19]}  Kf7 {[%clk 0:57:11]}
22. Ng5+ {[%clk 0:27:40]}  Ke7 {[%clk 0:57:35]} 23. Qg6 {[%clk 0:27:40]}  Re8 {[%clk 0:56:37]} 24. Qxe6+ {[%clk 0:26:49]}  Kd8 {[%clk 0:57:02]}
25. Nf7+ {[%clk 0:27:13]} 1-0

[Event "2026 European Womens Championship"]
[Site "Batumi, GE"]
[Date "2026.05.27"]
[Round "3"]
[White "Golsta, Madara"]
[Black "Gueci, Tea"]
[Result "0-1"]
[Board "64"]
[TimeControl "5400+30"]
[WhiteFideId "11607386"]
[BlackFideId "872342"]
[WhiteElo "2023"]
[BlackElo "2160"]
[BlackTitle "WIM"]
[WhiteClock "0:04:52"]
[BlackClock "0:01:55"]
[Variant "Standard"]

1. e4 {[%clk 1:30:57]}  c5 {[%clk 1:30:58]} 2. Nf3 {[%clk 1:31:20]}  e6 {[%clk 1:31:24]} 3. d4 {[%clk 1:31:37]}  cxd4 {[%clk 1:31:51]}
4. Nxd4 {[%clk 1:32:02]}  a6 {[%clk 1:32:18]} 5. c4 {[%clk 1:30:24]}  Nf6 {[%clk 1:32:41]} 6. Nc3 {[%clk 1:30:48]}  Bb4 {[%clk 1:33:06]}
7. Qd3 {[%clk 1:30:44]}  d6 {[%clk 1:33:31]} 8. Bd2 {[%clk 1:24:36]}  Nbd7 {[%clk 1:32:51]} 9. Nb3 {[%clk 1:17:42]}  O-O {[%clk 1:24:22]}
10. a3 {[%clk 1:15:59]}  Nc5 {[%clk 1:22:01]} 11. Nxc5 {[%clk 1:16:08]}  Bxc5 {[%clk 1:22:23]} 12. b4 {[%clk 1:16:05]}  Ba7 {[%clk 1:17:48]}
13. Be2 {[%clk 0:58:58]}  e5 {[%clk 1:02:06]} 14. Be3 {[%clk 0:53:46]}  Bxe3 {[%clk 0:51:50]} 15. Qxe3 {[%clk 0:49:46]}  Be6 {[%clk 0:52:17]}
16. Rd1 {[%clk 0:47:23]}  Qc7 {[%clk 0:48:38]} 17. Nd5 {[%clk 0:47:14]}  Bxd5 {[%clk 0:46:36]} 18. exd5 {[%clk 0:47:04]}  Nd7 {[%clk 0:42:20]}
19. O-O {[%clk 0:46:20]}  f5 {[%clk 0:41:10]} 20. f3 {[%clk 0:45:11]}  b6 {[%clk 0:38:04]} 21. Rc1 {[%clk 0:40:44]}  a5 {[%clk 0:35:32]}
22. Rfd1 {[%clk 0:31:08]}  axb4 {[%clk 0:29:50]} 23. axb4 {[%clk 0:31:29]}  Ra4 {[%clk 0:29:54]} 24. Rb1 {[%clk 0:18:14]}  Qa7 {[%clk 0:27:21]}
25. Kh1 {[%clk 0:13:39]}  g6 {[%clk 0:24:44]} 26. Qg5 {[%clk 0:12:22]}  Ra2 {[%clk 0:23:40]} 27. Bf1 {[%clk 0:11:52]}  Nf6 {[%clk 0:21:26]}
28. Rdc1 {[%clk 0:11:38]}  e4 {[%clk 0:19:27]} 29. c5 {[%clk 0:10:15]}  exf3 {[%clk 0:16:09]} 30. gxf3 {[%clk 0:10:29]}  bxc5 {[%clk 0:13:42]}
31. bxc5 {[%clk 0:10:47]}  Qa3 {[%clk 0:13:21]} 32. Qf4 {[%clk 0:04:31]}  Nh5 {[%clk 0:11:14]} 33. Qg5 {[%clk 0:04:51]}  Qxf3+ {[%clk 0:10:43]}
34. Bg2 {[%clk 0:05:15]}  Qf2 {[%clk 0:10:43]} 35. cxd6 {[%clk 0:05:02]}  f4 {[%clk 0:10:25]} 36. Rf1 {[%clk 0:04:52]}  Ng3+ {[%clk 0:08:04]}
37. Qxg3 {[%clk 0:04:59]}  fxg3 {[%clk 0:07:58]} 38. Rxf2 {[%clk 0:05:22]}  gxf2 {[%clk 0:07:59]} 39. Bh3 {[%clk 0:03:08]}  Re2 {[%clk 0:04:00]}
40. Rf1 {[%clk 0:03:20]}  Kf7 {[%clk 0:01:35]} 41. Kg2 {[%clk 0:00:36]}  Kf6 {[%clk 0:25:39]} 42. Be6 {[%clk 0:27:36]}  Ke5 {[%clk 0:24:23]}
43. d7 {[%clk 0:27:29]}  Kd6 {[%clk 0:24:05]} 44. Kg3 {[%clk 0:26:12]}  g5 {[%clk 0:22:44]} 45. h4 {[%clk 0:18:24]}  gxh4+ {[%clk 0:05:15]}
46. Kxh4 {[%clk 0:18:34]}  Ke7 {[%clk 0:05:33]} 47. Kg3 {[%clk 0:18:41]}  h5 {[%clk 0:04:48]} 48. Bh3 {[%clk 0:13:07]}  Re3+ {[%clk 0:01:25]}
49. Kg2 {[%clk 0:11:30]}  h4 {[%clk 0:00:53]} 50. Be6 {[%clk 0:07:21]}  h3+ {[%clk 0:01:05]} 51. Kh2 {[%clk 0:05:55]}  Re1 {[%clk 0:00:58]}
52. Bxh3 {[%clk 0:06:16]}  Rxf1 {[%clk 0:00:54]} 53. Bxf1 {[%clk 0:06:42]}  Kxd7 {[%clk 0:00:35]} 54. Kg2 {[%clk 0:04:05]}  Kd6 {[%clk 0:00:51]}
55. Bc4 {[%clk 0:04:28]}  Kc5 {[%clk 0:01:16]} 56. Be2 {[%clk 0:04:32]}  Kxd5 {[%clk 0:01:31]} 57. Bf3+ {[%clk 0:04:52]}  Rxf3 {[%clk 0:01:55]} 0-1